[Event "RUS-chT Women Rapid 2019"]
[Site "Sochi"]
[Date "2019.10.18"]
[Round "3.12"]
[White "Markelova, Lubov"]
[Black "Dumcheva, Julia"]
[Result "1-0"]
[ECO "A37"]
[WhiteElo "2198"]
[BlackElo "2168"]
[Annotator "NA"]
[PlyCount "137"]
[EventDate "2019.10.18"]
[EventType "swiss"]
[EventCountry "RUS"]
[SourceTitle "playchess.com"]
[Source "ChessBase"]
[SourceQuality "1"]
[TimeControl "900+10"]

1. Nf3 {[%emt 0:00:00]} c5 {[%emt 0:00:00]} 2. c4 {[%emt 0:00:00]} g6 {[%emt 0:00:16]} 3. Nc3 {[%emt 0:00:00]} Bg7 {[%emt 0:00:05]} 4. g3 {[%emt 0:00:04]} Nc6 {[%emt 0:00:09]} 5. Bg2 {[%emt 0:00:01]} d6 {[%emt 0:00:23]} 6. O-O {[%emt 0:00:11]} e6 {[%emt 0:00:07]} 7. d3 {[%emt 0:00:25]} Nge7 {[%emt 0:00:06]} 8. Bd2 {[%emt 0:00:12]} O-O {[%emt 0:00:05]} 9. Qc1 {[%emt 0:00:41]} Re8 {[%emt 0:00:01]} 10. Rb1 {[%emt 0:00:42]} b6 {[%emt 0:01:23]} 11. Bh6 {[%emt 0:02:37]} Bh8 {[%emt 0:00:07]} 12. Bg5 {[%emt 0:00:32]} Bb7 {[%emt 0:01:00]} 13. Ne4 {[%emt 0:00:57]} f5 {[%emt 0:02:05]} 14. Nf6+ {[%emt 0:00:28]} Bxf6 {[%emt 0:00:03]} 15. Bxf6 {[%emt 0:00:01]} Rf8 {[%emt 0:00:20]} 16. Bc3 {[%emt 0:01:00]} f4 {[%emt 0:03:16]} 17. Ng5 {[%emt 0:00:42]} Qd7 {[%emt 0:00:45]} 18. Bh3 {[%emt 0:02:15]} Nf5 {[%emt 0:01:04]} 19. Qxf4 {[%emt 0:02:43]} e5 {[%emt 0:01:53]} 20. Qd2 {[%emt 0:00:54]} Qe7 {[%emt 0:00:22]} 21. Bg2 {[%emt 0:01:16]} Ncd4 {[%emt 0:00:21]} 22. Bxb7 {[%emt 0:01:21]} Qxb7 {[%emt 0:00:02]} 23. e4 {[%emt 0:00:21]} Qe7 {[%emt 0:01:45]} 24. exf5 {[%emt 0:01:02]} Qxg5 {[%emt 0:00:08]} 25. Qxg5 {[%emt 0:00:00]} Nf3+ {[%emt 0:00:02]} 26. Kg2 {[%emt 0:00:01]} Nxg5 {[%emt 0:00:06]} 27. fxg6 {[%emt 0:00:04]} hxg6 {[%emt 0:00:10]} 28. f4 {[%emt 0:00:19]} exf4 {[%emt 0:00:03]} 29. Rxf4 {[%emt 0:00:20]} Rxf4 {[%emt 0:00:07]} 30. gxf4 {[%emt 0:00:01]} Ne6 {[%emt 0:00:01]} 31. Kg3 {[%emt 0:00:37]} Rf8 {[%emt 0:00:02]} 32. Rf1 {[%emt 0:00:19]} Rf5 {[%emt 0:00:04]} 33. h4 {[%emt 0:00:08]} Kf7 {[%emt 0:00:03]} 34. a3 {[%emt 0:00:03]} a6 {[%emt 0:00:11]} 35. Kg4 {[%emt 0:00:14]} b5 {[%emt 0:00:10]} 36. Kg3 {[%emt 0:00:04]} d5 {[%emt 0:00:28]} 37. Be5 {[%emt 0:00:12]} d4 {[%emt 0:00:56]} 38. b3 {[%emt 0:00:16]} Nf8 {[%emt 0:00:12]} 39. Re1 {[%emt 0:00:12]} Rh5 {[%emt 0:00:21]} 40. Bd6 {[%emt 0:00:12]} Ne6 {[%emt 0:00:07]} 41. Re5 {[%emt 0:00:08]} Rxe5 {[%emt 0:00:38]} 42. fxe5 {[%emt 0:00:01]} bxc4 {[%emt 0:00:21]} 43. bxc4 {[%emt 0:00:04]} Ke8 {[%emt 0:00:06]} 44. Kf3 {[%emt 0:00:26]} Kd7 {[%emt 0:00:03]} 45. Ke4 {[%emt 0:00:03]} Kc6 {[%emt 0:00:03]} 46. Be7 {[%emt 0:00:04]} Kd7 {[%emt 0:00:21]} 47. Bd6 {[%emt 0:00:12]} Kc6 {[%emt 0:00:10]} 48. Be7 {[%emt 0:00:02]} Kb6 {[%emt 0:00:44]} 49. Bg5 {[%emt 0:00:30]} Kc6 {[%emt 0:00:06]} 50. Be7 {[%emt 0:00:01]} a5 {[%emt 0:00:06]} 51. a4 {[%emt 0:00:04]} Ng7 {[%emt 0:00:26]} 52. Bd8 {[%emt 0:00:18]} Nf5 {[%emt 0:00:04]} 53. Bxa5 {[%emt 0:00:14]} Nxh4 {[%emt 0:00:03]} 54. Be1 {[%emt 0:00:14]} Nf5 {[%emt 0:00:08]} 55. a5 {[%emt 0:00:06]} Ne7 {[%emt 0:00:33]} 56. Bh4 {[%emt 0:00:04]} Nc8 {[%emt 0:00:03]} 57. Bg5 {[%emt 0:00:16]} Na7 {[%emt 0:00:09]} 58. e6 {[%emt 0:00:05]} Nc8 {[%emt 0:00:27]} 59. e7 {[%emt 0:00:16]} Nd6+ {[%emt 0:00:04]} 60. Ke5 {[%emt 0:00:10]} Kd7 {[%emt 0:00:27]} 61. a6 {[%emt 0:00:10]} Ne8 {[%emt 0:00:24]} 62. a7 {[%emt 0:00:05]} Nc7 {[%emt 0:00:04]} 63. Kf6 {[%emt 0:00:10]} Ke8 {[%emt 0:00:04]} 64. Kxg6 {[%emt 0:00:04]} Na8 {[%emt 0:00:05]} 65. Kf5 {[%emt 0:00:02]} Nc7 {[%emt 0:00:06]} 66. Ke5 {[%emt 0:00:02]} Kd7 {[%emt 0:00:04]} 67. e8=Q+ {[%emt 0:00:16]} Kxe8 {[%emt 0:00:05]} 68. Kd6 {[%emt 0:00:02]} Na8 {[%emt 0:00:01]} 69. Kc6 {[%emt 0:00:04]} 1-0

[Event "RUS-chT Women Rapid 2019"]
[Site "Sochi"]
[Date "2019.10.18"]
[Round "4.1"]
[White "Bodnaruk, Anastasia"]
[Black "Ambartsumova, Karina"]
[Result "1/2-1/2"]
[ECO "C67"]
[WhiteElo "2419"]
[BlackElo "2341"]
[Annotator "NA"]
[PlyCount "136"]
[EventDate "2019.10.18"]
[EventType "swiss"]
[EventCountry "RUS"]
[SourceTitle "playchess.com"]
[Source "ChessBase"]
[SourceQuality "1"]
[TimeControl "900+10"]

1. e4 {[%emt 0:00:00]} e5 {[%emt 0:00:00]} 2. Nf3 {[%emt 0:00:00]} Nc6 {[%emt 0:00:00]} 3. Bb5 {[%emt 0:00:00]} Nf6 {[%emt 0:00:00]} 4. O-O {[%emt 0:00:00]} Nxe4 {[%emt 0:00:16]} 5. d4 {[%emt 0:00:02]} Nd6 {[%emt 0:00:49]} 6. dxe5 {[%emt 0:00:08]} Nxb5 {[%emt 0:01:00]} 7. a4 {[%emt 0:00:01]} Nbd4 {[%emt 0:03:54]} 8. Nxd4 {[%emt 0:00:03]} Nxd4 {[%emt 0:00:05]} 9. Qxd4 {[%emt 0:00:01]} Be7 {[%emt 0:00:27]} 10. Qg4 {[%emt 0:00:57]} g6 {[%emt 0:01:28]} 11. Qg3 {[%emt 0:00:38]} d5 {[%emt 0:00:35]} 12. exd6 {[%emt 0:02:45]} Bxd6 {[%emt 0:00:54]} 13. Qc3 {[%emt 0:00:17]} f6 {[%emt 0:02:29]} 14. Qb3 {[%emt 0:01:12]} Qe7 {[%emt 0:00:34]} 15. Bd2 {[%emt 0:03:22]} Be6 {[%emt 0:00:01]} 16. Qxb7 {[%emt 0:00:09]} O-O {[%emt 0:00:02]} 17. Qc6 {[%emt 0:00:56]} Rab8 {[%emt 0:00:37]} 18. Bc3 {[%emt 0:00:37]} Qf7 {[%emt 0:01:05]} 19. Nd2 {[%emt 0:00:24]} Bd5 {[%emt 0:00:58]} 20. Qa6 {[%emt 0:00:01]} Qe6 {[%emt 0:01:00]} 21. Qd3 {[%emt 0:00:43]} c6 {[%emt 0:00:02]} 22. Rfe1 {[%emt 0:01:52]} Qg4 {[%emt 0:00:26]} 23. Ne4 {[%emt 0:00:44]} Bc7 {[%emt 0:01:02]} 24. f3 {[%emt 0:01:25]} Qf4 {[%emt 0:00:03]} 25. g3 {[%emt 0:00:14]} Qf5 {[%emt 0:00:02]} 26. Kg2 {[%emt 0:00:49]} Rbd8 {[%emt 0:00:02]} 27. Qe2 {[%emt 0:00:16]} Qe6 {[%emt 0:01:15]} 28. Qa6 {[%emt 0:00:56]} Qf5 {[%emt 0:00:17]} 29. Qxa7 {[%emt 0:00:10]} Rd7 {[%emt 0:00:06]} 30. Qd4 {[%emt 0:00:34]} Rdf7 {[%emt 0:00:17]} 31. a5 {[%emt 0:00:11]} Be5 {[%emt 0:00:08]} 32. Qd3 {[%emt 0:00:18]} Bxc3 {[%emt 0:00:04]} 33. Nxc3 {[%emt 0:00:07]} Qxd3 {[%emt 0:00:08]} 34. cxd3 {[%emt 0:00:01]} Rb8 {[%emt 0:00:06]} 35. Re2 {[%emt 0:00:03]} Bb3 {[%emt 0:00:11]} 36. Ra3 {[%emt 0:00:23]} Ra7 {[%emt 0:00:05]} 37. Ne4 {[%emt 0:00:07]} Kf7 {[%emt 0:00:02]} 38. Nc5 {[%emt 0:00:05]} Bd5 {[%emt 0:00:02]} 39. a6 {[%emt 0:00:03]} Rb5 {[%emt 0:00:03]} 40. d4 {[%emt 0:00:02]} Rb4 {[%emt 0:00:01]} 41. Rd2 {[%emt 0:00:08]} g5 {[%emt 0:00:20]} 42. b3 {[%emt 0:00:10]} g4 {[%emt 0:00:07]} 43. Kf2 {[%emt 0:00:09]} Bxf3 {[%emt 0:00:04]} 44. Ke3 {[%emt 0:00:05]} h5 {[%emt 0:00:34]} 45. Ra1 {[%emt 0:00:36]} Bd5 {[%emt 0:00:16]} 46. Rd3 {[%emt 0:00:02]} Kg6 {[%emt 0:00:17]} 47. Kf4 {[%emt 0:00:16]} Bf3 {[%emt 0:00:14]} 48. Re1 {[%emt 0:00:08]} Bd5 {[%emt 0:00:05]} 49. Re8 {[%emt 0:00:08]} Kg7 {[%emt 0:00:15]} 50. Rd8 {[%emt 0:00:22]} Kg6 {[%emt 0:00:12]} 51. Ke3 {[%emt 0:00:22]} Rb5 {[%emt 0:00:09]} 52. Rd7 {[%emt 0:00:13]} Ra8 {[%emt 0:00:15]} 53. Kf4 {[%emt 0:00:02]} Ra5 {[%emt 0:00:04]} 54. Re3 {[%emt 0:00:14]} Ra1 {[%emt 0:00:14]} 55. Ree7 {[%emt 0:00:01]} Rf1+ {[%emt 0:00:06]} 56. Ke3 {[%emt 0:00:01]} Rf3+ {[%emt 0:00:09]} 57. Ke2 {[%emt 0:00:17]} Bxb3 {[%emt 0:00:04]} 58. a7 {[%emt 0:00:12]} Bc4+ {[%emt 0:00:03]} 59. Kd2 {[%emt 0:00:02]} Rf2+ {[%emt 0:00:27]} 60. Kc3 {[%emt 0:00:00]} Bd5 {[%emt 0:00:01]} 61. Rb7 {[%emt 0:00:28]} Ra2 {[%emt 0:00:06]} 62. Nd3 {[%emt 0:00:11]} Ra3+ {[%emt 0:00:07]} 63. Kd2 {[%emt 0:00:02]} Ra2+ {[%emt 0:00:02]} 64. Ke3 {[%emt 0:00:04]} Ra3 {[%emt 0:00:01]} 65. Kf4 {[%emt 0:00:09]} Rg8 {[%emt 0:00:09]} 66. Re3 {[%emt 0:00:33]} Ra8 {[%emt 0:00:07]} 67. Ree7 {[%emt 0:00:02]} Rg8 {[%emt 0:00:01]} 68. Re3 {[%emt 0:00:06]} Ra8 {[%emt 0:00:01] Ke4} 1/2-1/2

[Event "RUS-chT Women Rapid 2019"]
[Site "Sochi"]
[Date "2019.10.18"]
[Round "4.2"]
[White "Shafigullina, Zarina"]
[Black "Ovod, Evgenija"]
[Result "0-1"]
[ECO "D02"]
[WhiteElo "2295"]
[BlackElo "2347"]
[Annotator "NA"]
[PlyCount "122"]
[EventDate "2019.10.18"]
[EventType "swiss"]
[EventCountry "RUS"]
[SourceTitle "playchess.com"]
[Source "ChessBase"]
[SourceQuality "1"]
[TimeControl "900+10"]

1. d4 {[%emt 0:00:00]} d5 {[%emt 0:00:00]} 2. Nf3 {[%emt 0:00:00]} Nf6 {[%emt 0:00:00]} 3. g3 {[%emt 0:00:00]} Bg4 {[%emt 0:00:04]} 4. Bg2 {[%emt 0:00:03]} Nbd7 {[%emt 0:00:09]} 5. Nbd2 {[%emt 0:00:18]} e6 {[%emt 0:00:11]} 6. O-O {[%emt 0:00:05]} Be7 {[%emt 0:00:22]} 7. c4 {[%emt 0:00:02]} c6 {[%emt 0:00:01]} 8. Re1 {[%emt 0:00:02]} O-O {[%emt 0:00:05]} 9. e4 {[%emt 0:00:35]} Bb4 {[%emt 0:01:07]} 10. Qb3 {[%emt 0:02:34]} Bxf3 {[%emt 0:01:12]} 11. Qxb4 {[%emt 0:01:17]} Bxg2 {[%emt 0:00:05]} 12. Kxg2 {[%emt 0:00:02]} Qb6 {[%emt 0:00:12]} 13. Qc3 {[%emt 0:00:17]} dxe4 {[%emt 0:01:12]} 14. Nxe4 {[%emt 0:00:01]} Nxe4 {[%emt 0:00:02]} 15. Rxe4 {[%emt 0:00:01]} c5 {[%emt 0:00:02]} 16. dxc5 {[%emt 0:01:40]} Qc6 {[%emt 0:00:19]} 17. f3 {[%emt 0:00:05]} Nxc5 {[%emt 0:00:13]} 18. Rg4 {[%emt 0:03:02]} f6 {[%emt 0:00:03]} 19. Bh6 {[%emt 0:00:25]} Rf7 {[%emt 0:00:04]} 20. Rd1 {[%emt 0:00:23]} e5 {[%emt 0:00:15]} 21. Be3 {[%emt 0:00:19]} Ne6 {[%emt 0:02:51]} 22. c5 {[%emt 0:00:30]} Rd8 {[%emt 0:01:51]} 23. Rxd8+ Nxd8 {[%emt 0:00:01]} 24. Qb3 {[%emt 0:01:22]} Ne6 {[%emt 0:00:13]} 25. Qa4 {[%emt 0:01:48]} Qd5 {[%emt 0:00:59]} 26. Qc4 {[%emt 0:01:05]} Qd7 {[%emt 0:00:48]} 27. Qc2 {[%emt 0:01:20]} f5 {[%emt 0:00:46]} 28. Rc4 {[%emt 0:00:02]} f4 {[%emt 0:00:08]} 29. Bf2 {[%emt 0:00:00]} Ng5 {[%emt 0:00:35]} 30. g4 {[%emt 0:01:25]} e4 {[%emt 0:00:06]} 31. fxe4 {[%emt 0:00:12]} Qxg4+ {[%emt 0:00:14]} 32. Kf1 {[%emt 0:00:25]} Qh3+ {[%emt 0:00:48]} 33. Ke2 {[%emt 0:00:07]} Qf3+ {[%emt 0:00:21]} 34. Ke1 {[%emt 0:00:29]} Re7 {[%emt 0:02:09]} 35. Qe2 {[%emt 0:00:19]} Qh1+ {[%emt 0:00:17]} 36. Kd2 {[%emt 0:00:33]} Nxe4+ {[%emt 0:00:20]} 37. Kc2 {[%emt 0:00:01]} Qg2 {[%emt 0:00:16]} 38. Rd4 {[%emt 0:00:19]} Qxf2 {[%emt 0:00:16]} 39. Qxf2 {[%emt 0:00:05]} Nxf2 {[%emt 0:00:04]} 40. Rxf4 {[%emt 0:00:01]} Ne4 {[%emt 0:00:11]} 41. b4 {[%emt 0:00:01]} g5 {[%emt 0:00:13]} 42. Rf5 {[%emt 0:00:01]} Kg7 {[%emt 0:00:37]} 43. Kd3 {[%emt 0:00:01]} Kg6 {[%emt 0:00:02]} 44. Rd5 {[%emt 0:00:02]} Nf6 {[%emt 0:00:21]} 45. Rd6 {[%emt 0:00:07]} Rd7 {[%emt 0:00:08]} 46. Rxd7 {[%emt 0:00:04]} Nxd7 {[%emt 0:00:00]} 47. Ke4 {[%emt 0:00:03]} h5 {[%emt 0:00:05]} 48. Kd5 {[%emt 0:00:03]} g4 {[%emt 0:00:13]} 49. Kd6 {[%emt 0:00:03]} Nf6 {[%emt 0:00:22]} 50. Kc7 {[%emt 0:00:08]} h4 {[%emt 0:00:20]} 51. b5 {[%emt 0:00:18]} g3 {[%emt 0:00:03]} 52. hxg3 {[%emt 0:00:01]} hxg3 {[%emt 0:00:01]} 53. Kxb7 {[%emt 0:00:05]} g2 {[%emt 0:00:04]} 54. c6 {[%emt 0:00:01]} g1=Q {[%emt 0:00:13]} 55. c7 {[%emt 0:00:05]} Qb6+ {[%emt 0:00:06]} 56. Kc8 {[%emt 0:00:03]} Qxb5 {[%emt 0:00:06]} 57. a4 {[%emt 0:00:01]} Qxa4 {[%emt 0:00:10]} 58. Kb8 {[%emt 0:00:03]} Qb5+ {[%emt 0:00:08]} 59. Ka8 {[%emt 0:00:04]} Qc6+ {[%emt 0:00:07]} 60. Kb8 {[%emt 0:00:01]} Nd7+ {[%emt 0:00:05]} 61. Kc8 {[%emt 0:00:02]} Nb6+ {[%emt 0:00:03]} 0-1

[Event "RUS-chT Women Rapid 2019"]
[Site "Sochi"]
[Date "2019.10.18"]
[Round "4.3"]
[White "Belenkaya, Dina"]
[Black "Yakimova, Mariya"]
[Result "1-0"]
[ECO "B25"]
[WhiteElo "2300"]
[BlackElo "2276"]
[Annotator "NA"]
[PlyCount "97"]
[EventDate "2019.10.18"]
[EventType "swiss"]
[EventCountry "RUS"]
[SourceTitle "playchess.com"]
[Source "ChessBase"]
[SourceQuality "1"]
[TimeControl "900+10"]

1. e4 {[%emt 0:00:00]} c5 {[%emt 0:00:00]} 2. Nc3 {[%emt 0:00:00]} Nc6 {[%emt 0:00:00]} 3. g3 {[%emt 0:00:00]} g6 {[%emt 0:00:00]} 4. Bg2 {[%emt 0:00:00]} Bg7 {[%emt 0:00:00]} 5. d3 {[%emt 0:00:00]} d6 {[%emt 0:00:01]} 6. Nf3 {[%emt 0:00:00]} e5 {[%emt 0:00:23]} 7. Bg5 {[%emt 0:00:10]} Nge7 {[%emt 0:00:17]} 8. Qd2 {[%emt 0:00:02]} h6 {[%emt 0:00:54]} 9. Be3 {[%emt 0:00:04]} Be6 {[%emt 0:00:15]} 10. O-O {[%emt 0:01:01]} g5 {[%emt 0:02:01]} 11. Ne1 {[%emt 0:02:40]} Ng6 {[%emt 0:01:24]} 12. Nd5 {[%emt 0:02:44]} Bxd5 {[%emt 0:00:11]} 13. exd5 {[%emt 0:00:01]} Nce7 {[%emt 0:00:01]} 14. Qe2 {[%emt 0:01:33]} O-O {[%emt 0:01:12]} 15. Qh5 {[%emt 0:01:03]} Qe8 {[%emt 0:02:24]} 16. h4 {[%emt 0:00:31]} gxh4 {[%emt 0:00:19]} 17. Bxh6 {[%emt 0:01:12]} Bxh6 {[%emt 0:01:52]} 18. Qxh6 {[%emt 0:00:02]} Nf5 {[%emt 0:00:07]} 19. Qh5 {[%emt 0:00:46]} Nd4 {[%emt 0:00:48]} 20. c3 {[%emt 0:00:21]} Nb5 {[%emt 0:00:10]} 21. Be4 {[%emt 0:00:16]} Nc7 {[%emt 0:00:58]} 22. Nf3 {[%emt 0:00:20]} Kg7 {[%emt 0:00:18]} 23. Nxh4 {[%emt 0:00:24]} Rh8 {[%emt 0:00:34]} 24. Qg5 {[%emt 0:01:03]} Qd8 {[%emt 0:00:46]} 25. Nf5+ {[%emt 0:00:24]} Kf8 {[%emt 0:00:33]} 26. Qg4 {[%emt 0:00:06]} Ne8 {[%emt 0:00:10]} 27. Kg2 {[%emt 0:00:35]} Nf6 {[%emt 0:00:17]} 28. Qf3 {[%emt 0:00:07]} Nh5 {[%emt 0:01:34]} 29. Rh1 {[%emt 0:00:22]} Qg5 {[%emt 0:00:26]} 30. Kf1 {[%emt 0:00:41]} Rd8 {[%emt 0:00:15]} 31. Ke2 {[%emt 0:00:10]} Rd7 {[%emt 0:00:24]} 32. Rh3 {[%emt 0:00:46]} f6 {[%emt 0:00:07]} 33. Rah1 {[%emt 0:00:12]} Rdh7 {[%emt 0:00:10]} 34. Kd1 {[%emt 0:00:15]} Kg8 {[%emt 0:01:09]} 35. Ne7+ {[%emt 0:01:50]} Nxe7 {[%emt 0:00:27]} 36. Bxh7+ {[%emt 0:00:04]} Rxh7 {[%emt 0:00:05]} 37. Rxh5 {[%emt 0:00:02]} Rxh5 {[%emt 0:00:05]} 38. Rxh5 {[%emt 0:00:05]} Qg6 {[%emt 0:00:08]} 39. g4 {[%emt 0:00:08]} Kg7 {[%emt 0:00:17]} 40. Kc2 {[%emt 0:00:02]} Ng8 {[%emt 0:00:10]} 41. Qf5 {[%emt 0:00:12]} Nh6 {[%emt 0:00:23]} 42. Qd7+ {[%emt 0:00:12]} Nf7 {[%emt 0:00:04]} 43. f3 {[%emt 0:00:04]} Kg8 {[%emt 0:00:14]} 44. Qxb7 {[%emt 0:00:02]} Ng5 {[%emt 0:00:08]} 45. Qb8+ {[%emt 0:00:02]} Kg7 {[%emt 0:00:15]} 46. Qxa7+ {[%emt 0:00:01]} Nf7 {[%emt 0:00:01]} 47. a4 {[%emt 0:00:07]} c4 {[%emt 0:00:01]} 48. Qe3 {[%emt 0:00:05]} Ng5 {[%emt 0:00:06]} 49. a5 {[%emt 0:00:13]} 1-0

[Event "RUS-chT Women Rapid 2019"]
[Site "Sochi"]
[Date "2019.10.18"]
[Round "4.4"]
[White "Markelova, Lubov"]
[Black "Styazhkina, Anna"]
[Result "1-0"]
[ECO "D12"]
[WhiteElo "2198"]
[BlackElo "2280"]
[Annotator "NA"]
[PlyCount "103"]
[EventDate "2019.10.18"]
[EventType "swiss"]
[EventCountry "RUS"]
[SourceTitle "playchess.com"]
[Source "ChessBase"]
[SourceQuality "1"]
[TimeControl "900+10"]

1. Nf3 {[%emt 0:00:00]} d5 {[%emt 0:00:00]} 2. d4 {[%emt 0:00:00]} Nf6 {[%emt 0:00:00]} 3. c4 {[%emt 0:00:00]} c6 {[%emt 0:00:00]} 4. e3 {[%emt 0:00:00]} Bf5 {[%emt 0:00:00]} 5. cxd5 {[%emt 0:00:14]} cxd5 {[%emt 0:00:02]} 6. Nc3 {[%emt 0:00:02]} Nc6 {[%emt 0:01:07]} 7. Ne5 {[%emt 0:00:06]} e6 {[%emt 0:01:21]} 8. g4 {[%emt 0:00:37]} Be4 {[%emt 0:00:39]} 9. f3 {[%emt 0:01:02]} Bg6 {[%emt 0:00:02]} 10. h4 {[%emt 0:00:04]} h5 {[%emt 0:02:08]} 11. Nxg6 {[%emt 0:00:08]} fxg6 {[%emt 0:00:01]} 12. g5 {[%emt 0:03:00]} Ng8 {[%emt 0:00:02]} 13. Bh3 {[%emt 0:00:10]} Qd6 {[%emt 0:02:46]} 14. Kf2 {[%emt 0:01:11]} O-O-O {[%emt 0:00:50]} 15. Bd2 {[%emt 0:04:36]} Kb8 {[%emt 0:01:36]} 16. Nb5 {[%emt 0:00:39]} Qd7 {[%emt 0:00:01]} 17. e4 {[%emt 0:01:22]} Qf7 {[%emt 0:00:56]} 18. exd5 {[%emt 0:01:35]} Rxd5 {[%emt 0:01:33]} 19. Qe2 {[%emt 0:00:20]} e5 {[%emt 0:01:58]} 20. Rac1 {[%emt 0:01:44]} Nge7 {[%emt 0:00:57]} 21. dxe5 {[%emt 0:00:37]} Rxe5 {[%emt 0:00:20]} 22. Qd3 {[%emt 0:00:56]} Nd5 {[%emt 0:01:01]} 23. Rhe1 {[%emt 0:00:10]} Rxe1 {[%emt 0:00:20]} 24. Rxe1 {[%emt 0:00:04]} Bc5+ {[%emt 0:00:03]} 25. Kg2 {[%emt 0:00:14]} Rd8 {[%emt 0:00:29]} 26. Qe4 {[%emt 0:00:09]} Nc7 {[%emt 0:00:52]} 27. Bf4 {[%emt 0:00:08]} Bb6 {[%emt 0:00:06]} 28. Be6 {[%emt 0:00:19]} Qe7 {[%emt 0:00:06]} 29. Nxc7 {[%emt 0:00:10]} Bxc7 {[%emt 0:00:01]} 30. Bxc7+ {[%emt 0:00:05]} Qxc7 {[%emt 0:00:05]} 31. Re2 {[%emt 0:00:10]} Nd4 {[%emt 0:00:15]} 32. Rd2 {[%emt 0:00:08]} Nxe6 {[%emt 0:00:04]} 33. Rxd8+ {[%emt 0:00:14]} Nxd8 {[%emt 0:00:02]} 34. Qxg6 {[%emt 0:00:02]} a6 {[%emt 0:00:24]} 35. Qxh5 {[%emt 0:00:05]} Qc2+ {[%emt 0:00:09]} 36. Kg3 {[%emt 0:00:02]} Nc6 {[%emt 0:00:21]} 37. Qh8+ {[%emt 0:00:08]} Ka7 {[%emt 0:00:03]} 38. Qxg7 {[%emt 0:00:01]} Qd1 {[%emt 0:00:15]} 39. Kg4 {[%emt 0:00:40]} Nd4 {[%emt 0:00:15]} 40. Qf6 {[%emt 0:00:13]} Qg1+ {[%emt 0:00:12]} 41. Kh5 {[%emt 0:00:03]} Ne2 {[%emt 0:00:10]} 42. g6 {[%emt 0:00:12]} Ng3+ {[%emt 0:00:10]} 43. Kh6 {[%emt 0:00:03]} Qe3+ {[%emt 0:00:07]} 44. Kh7 {[%emt 0:00:16]} Nh5 {[%emt 0:00:06]} 45. Qf7 {[%emt 0:00:19]} Qd3 {[%emt 0:00:21]} 46. f4 {[%emt 0:00:09]} Qh3 {[%emt 0:00:07]} 47. Qe7 {[%emt 0:00:08]} Nxf4 {[%emt 0:00:07]} 48. Qc5+ {[%emt 0:00:05]} Ka8 {[%emt 0:00:09]} 49. Qf8+ {[%emt 0:00:01]} Ka7 {[%emt 0:00:04]} 50. Qxf4 {[%emt 0:00:02]} Qd7+ {[%emt 0:00:06]} 51. g7 {[%emt 0:00:03]} Qd3+ {[%emt 0:00:06]} 52. Kh8 {[%emt 0:00:05]} 1-0

[Event "RUS-chT Women Rapid 2019"]
[Site "Sochi"]
[Date "2019.10.18"]
[Round "4.5"]
[White "Voit, Daria"]
[Black "Pogonina, Natalija"]
[Result "1/2-1/2"]
[ECO "D30"]
[WhiteElo "2336"]
[BlackElo "2479"]
[Annotator "ChessBase"]
[PlyCount "135"]
[EventDate "2019.10.18"]
[EventType "swiss"]
[EventCountry "RUS"]
[SourceTitle "playchess.com"]
[Source "ChessBase"]
[SourceQuality "1"]
[TimeControl "900+10"]

1. d4 {[%emt 0:00:00]} d5 {[%emt 0:00:00]} 2. c4 {[%emt 0:00:00]} e6 {[%emt 0:00:00]} 3. Nf3 {[%emt 0:00:00]} Nf6 {[%emt 0:00:00]} 4. g3 {[%emt 0:00:00]} Bb4+ {[%emt 0:00:06]} 5. Bd2 {[%emt 0:00:00]} Bd6 {[%emt 0:00:03]} 6. Bg2 {[%emt 0:00:01]} c6 {[%emt 0:00:06]} 7. O-O {[%emt 0:00:18]} O-O {[%emt 0:00:03]} 8. b3 {[%emt 0:01:07]} Nbd7 {[%emt 0:00:07]} 9. Bc3 {[%emt 0:00:03]} Ne4 {[%emt 0:00:53]} 10. Nfd2 {[%emt 0:01:04]} f5 {[%emt 0:01:15]} 11. Bb2 {[%emt 0:00:47]} a5 {[%emt 0:00:19]} 12. Nxe4 {[%emt 0:01:13]} fxe4 {[%emt 0:00:06]} 13. f3 {[%emt 0:00:06]} exf3 {[%emt 0:00:34]} 14. Rxf3 {[%emt 0:00:04]} Rxf3 {[%emt 0:00:21]} 15. exf3 {[%emt 0:01:07]} Nf6 {[%emt 0:01:15]} 16. Qe2 {[%emt 0:00:43]} c5 {[%emt 0:00:54]} 17. cxd5 {[%emt 0:01:03]} exd5 {[%emt 0:00:06]} 18. Nc3 {[%emt 0:00:08]} cxd4 {[%emt 0:00:40]} 19. Nb5 {[%emt 0:00:04]} Bc5 {[%emt 0:00:10]} 20. Bxd4 {[%emt 0:00:37]} Bxd4+ {[%emt 0:00:41]} 21. Nxd4 {[%emt 0:00:02]} Qb6 {[%emt 0:00:03]} 22. Rd1 {[%emt 0:01:20]} Bd7 {[%emt 0:00:05]} 23. h3 {[%emt 0:00:20]} a4 {[%emt 0:00:20]} 24. Kh2 {[%emt 0:00:08]} axb3 {[%emt 0:00:15]} 25. axb3 {[%emt 0:00:04]} Re8 {[%emt 0:00:07]} 26. Qd3 {[%emt 0:00:14]} Qc5 {[%emt 0:01:46]} 27. Nc2 {[%emt 0:01:41]} Bb5 {[%emt 0:01:16]} 28. Qf5 {[%emt 0:00:04]} Be2 {[%emt 0:00:33]} 29. Rd2 {[%emt 0:01:17]} Qc3 {[%emt 0:01:04]} 30. Qf4 {[%emt 0:00:07]} h6 {[%emt 0:02:18]} 31. Qb4 {[%emt 0:00:43]} Qc7 {[%emt 0:00:39]} 32. Qd4 {[%emt 0:01:11]} Bb5 {[%emt 0:00:23]} 33. Ne3 {[%emt 0:00:30]} Bc6 {[%emt 0:00:31]} 34. f4 {[%emt 0:00:02]} Kh8 {[%emt 0:00:09]} 35. b4 {[%emt 0:00:57]} Qe7 {[%emt 0:01:12]} 36. Nf5 {[%emt 0:01:12]} Qe6 {[%emt 0:00:32]} 37. g4 {[%emt 0:00:32]} Kh7 {[%emt 0:00:20]} 38. Rd3 {[%emt 0:00:43]} Qg8 {[%emt 0:01:31]} 39. Re3 {[%emt 0:01:14]} Rxe3 {[%emt 0:00:05]} 40. Nxe3 {[%emt 0:00:34]} Qf8 {[%emt 0:00:23]} 41. Nf5 {[%emt 0:00:11]} Bd7 {[%emt 0:00:11]} 42. Ne3 {[%emt 0:00:09]} Bc6 {[%emt 0:00:02]} 43. Nf5 {[%emt 0:00:09]} Bd7 {[%emt 0:00:12]} 44. Ne3 {[%emt 0:00:08]} Be6 {[%emt 0:00:20]} 45. Qb6 {[%emt 0:00:09]} Bc8 {[%emt 0:00:10]} 46. Bxd5 {[%emt 0:00:14]} Qe7 {[%emt 0:00:21]} 47. Bg2 {[%emt 0:00:05]} Nd7 {[%emt 0:00:05]} 48. Qd4 {[%emt 0:00:02]} Nf6 {[%emt 0:00:03]} 49. Qd3+ {[%emt 0:00:06]} Kh8 {[%emt 0:00:03]} 50. Qc3 {[%emt 0:00:05]} Bd7 {[%emt 0:00:03]} 51. Qd4 {[%emt 0:00:12]} Bc6 {[%emt 0:00:04]} 52. Bxc6 {[%emt 0:00:10]} bxc6 {[%emt 0:00:01]} 53. Kg3 {[%emt 0:00:07]} Qe6 {[%emt 0:00:24]} 54. Qd8+ {[%emt 0:00:16]} Kh7 {[%emt 0:00:01]} 55. Qd3+ {[%emt 0:00:02]} Kh8 {[%emt 0:00:02]} 56. Kf3 {[%emt 0:00:11]} Qe7 {[%emt 0:00:05]} 57. Qd4 {[%emt 0:00:05]} Qe6 {[%emt 0:00:03]} 58. Qd8+ {[%emt 0:00:14]} Kh7 {[%emt 0:00:03]} 59. Qd3+ {[%emt 0:00:02]} Kh8 {[%emt 0:00:01]} 60. Qc4 {[%emt 0:00:01]} Qd7 {[%emt 0:00:11]} 61. Qc5 {[%emt 0:00:11]} Qe6 {[%emt 0:00:22]} 62. Qc4 {[%emt 0:00:27]} Qd7 {[%emt 0:00:04]} 63. Qc5 {[%emt 0:00:17]} Qe6 {[%emt 0:00:03]} 64. Qc4 {[%emt 0:00:22]} Qd7 {[%emt 0:00:01]} 65. Qc3 {[%emt 0:00:09]} Qe6 {[%emt 0:00:09]} 66. Qc4 {[%emt 0:00:16]} Qd7 {[%emt 0:00:01]} 67. Qc3 {[%emt 0:00:10]} Qe6 {[%emt 0:00:02]} 68. Qc4 {[%emt 0:00:10]} 1/2-1/2